bitfinex-derivatives/quotes_ETHF0:USTF0_20250905
["timestamp","ask_amount","ask_price","bid_price","bid_amount"]
[1757102563392,11.5392641,4335.2,4334.2,0.2913]
[1757102563692,3.2078,4334.5,4334.4,0.2913]
[1757102563897,3.9392641,4334.5,4334.4,0.2913]
[1757102564398,3.9392641,4334.5,4334.1,0.4883]
[1757102564595,0.4914641,4334.4,4334.1,0.2913]
[1757102564793,0.24,4334.3,4334.1,0.2913]
[1757102564998,0.4914641,4334.2,4334.1,0.2913]
[1757102565600,0.4914641,4334.2,4334.1,0.4883]
[1757102566801,0.4914641,4334.2,4334.1,0.6946]
[1757102567608,0.4914641,4334.2,4334.1,0.2913]
[1757102568500,0.4914641,4334.2,4334.1,0.4883]
[1757102569903,0.4914641,4334.2,4334.0,0.4387]
[1757102570097,0.24,4334.1,4334.0,0.4387]
[1757102570303,0.7314641,4334.1,4334.0,0.4387]
[1757102570502,0.7314641,4334.1,4334.0,0.6433]
[1757102571394,0.4914641,4334.1,4334.0,0.855]
[1757102571595,0.4914641,4334.1,4334.0,0.6433]
[1757102572807,0.4914641,4334.1,4334.0,0.855]
[1757102586811,3.2078,4334.5,4334.0,0.855]
[1757102586812,0.4914641,4334.4,4334.0,0.855]
[1757102587012,0.4914641,4334.3,4334.2,0.4163]
[1757102587211,2.5648,4334.5,4334.4,0.7365]
[1757102587416,3.2078,4335.0,4334.9,0.569]
[1757102587616,3.511,4335.0,4334.9,0.569]
[1757102588116,3.2078,4335.0,4334.9,0.569]
[1757102588321,4.0367,4335.0,4334.7,0.82555735]
[1757102588521,0.3032,4334.9,4334.7,0.82555735]
[1757102588715,0.7079,4334.8,4334.7,1.03015735]
[1757102588913,0.7079,4334.8,4334.7,0.4163]
[1757102590020,0.7079,4334.8,4334.7,1.24160485]
[1757102591922,0.7079,4334.8,4334.7,0.4163]
[1757102592927,0.5141,4334.8,4334.7,0.4163]
[1757102593219,0.5141,4334.8,4334.7,0.569]
[1757102593620,0.5141,4334.8,4334.7,0.4163]
[1757102593824,0.3032,4334.8,4334.7,0.4163]
[1757102594022,0.3032,4334.8,4334.7,0.569]
[1757102595314,3.3288,4335.0,4334.9,0.4163]
[1757102595315,3.632,4335.0,4334.9,0.4163]
[1757102595519,3.632,4335.0,4334.9,0.569]
[1757102596323,0.3032,4335.4,4334.9,4.569]
[1757102596515,3.2078,4335.6,4335.3,0.4163]
[1757102596718,3.2078,4335.6,4334.8,1.22919708]
[1757102596719,3.2078,4335.6,4335.5,0.569]
[1757102596917,3.511,4335.6,4335.5,0.569]
[1757102598628,0.3032,4335.6,4335.5,0.569]
[1757102599525,0.5141,4335.6,4335.5,0.569]
[1757102602719,0.5141,4335.6,4335.5,0.4163]
[1757102602921,0.2921,4336.0,4335.9,0.5526]
[1757102603118,0.8258,4336.0,4335.9,0.3992]
[1757102606231,0.8258,4336.0,4335.4,0.3992]
[1757102606232,0.6176,4335.5,4335.4,0.3992]
[1757102606426,0.6176,4335.5,4335.4,0.6372]
[1757102607724,0.8258,4335.5,4335.4,0.3992]
[1757102608029,0.8258,4335.5,4335.4,0.4433]
[1757102609730,0.8258,4335.5,4335.4,0.2053]
[1757102610026,0.8258,4335.5,4335.4,0.4423]
[1757102610723,0.8258,4335.5,4335.0,1.22919708]
[1757102610724,0.2921,4335.4,4335.0,1.22919708]
[1757102610925,0.8258,4335.0,4334.9,0.2053]
[1757102611123,0.2921,4334.9,4334.4,1.22919708]
[1757102611335,0.8258,4334.5,4334.4,1.67149708]
[1757102611638,0.8258,4334.5,4334.4,0.6362]
[1757102612432,0.8258,4334.5,4334.4,0.4423]
[1757102612637,0.8258,4334.5,4334.4,0.237]
[1757102613030,0.2921,4334.4,4334.2,3.2078]
[1757102613238,0.7028,4334.3,4334.2,3.2078]
[1757102614320,0.7028,4334.3,4334.2,0.3992]
[1757102616434,0.7028,4334.3,4334.2,0.6372]
[1757102617338,0.7028,4334.3,4334.2,0.238]
[1757102617839,0.7028,4333.8,4333.7,3.4131]
[1757102618135,0.7028,4333.8,4333.7,3.6501]
[1757102618336,0.7028,4333.8,4333.7,3.4131]
[1757102618538,0.7028,4333.8,4333.7,3.6501]
[1757102619530,0.7028,4333.8,4333.7,3.607]
[1757102619733,0.7028,4333.8,4333.7,3.844]
[1757102619931,0.4946,4333.8,4333.7,3.844]
[1757102620231,0.2921,4333.8,4333.7,3.9975]
[1757102620425,0.123,4334.0,4333.7,3.9975]
[1757102620628,0.2921,4334.3,4334.2,0.3992]
[1757102620830,0.4946,4334.3,4334.2,0.6362]
[1757102621439,0.7028,4334.3,4334.2,0.6362]
[1757102621838,0.4946,4334.3,4334.2,0.7897]
[1757102622138,0.4946,4334.3,4334.2,3.9975]
[1757102623236,0.2921,4334.9,4334.3,0.1535]
[1757102623440,0.4946,4335.4,4335.3,0.3992]
[1757102623636,0.4946,4335.4,4335.3,0.6362]
[1757102624139,0.2921,4335.4,4335.3,0.7897]
[1757102624836,0.4946,4335.4,4335.3,0.6362]
[1757102625036,0.4946,4335.4,4335.3,3.844]
[1757102625634,0.4946,4335.4,4335.3,3.6501]
[1757102625635,0.7028,4335.4,4335.3,3.6501]
[1757102625837,0.3312,4335.0,4334.9,0.2053]
[1757102626039,0.5337,4335.0,4334.9,0.4423]
[1757102626238,0.5337,4335.0,4334.9,0.6362]
[1757102626543,0.6176,4335.0,4334.9,0.6362]
[1757102627545,0.123,4335.0,4334.9,0.237]
[1757102627745,0.8258,4335.0,4334.9,0.237]
[1757102630042,0.123,4335.5,4334.9,3.8656]
[1757102630240,0.3014,4335.4,4334.9,4.0189]
[1757102630437,0.3014,4335.4,4334.9,3.8656]
[1757102630642,0.1167,4335.0,4334.9,3.8656]
[1757102630845,0.4181,4335.0,4334.9,3.8656]
[1757102631040,0.4181,4335.0,4334.9,4.0189]
[1757102631543,0.6341,4335.5,4335.4,0.4208]
[1757102631940,0.8371,4335.5,4335.4,0.4208]
[1757102634049,0.8371,4335.5,4335.4,0.2071]
[1757102634248,0.4181,4335.0,4334.9,3.8656]
[1757102634443,0.6278,4335.0,4334.9,3.8656]
[1757102635158,0.8308,4335.0,4334.9,3.8656]
[1757102636759,0.8308,4335.0,4334.9,3.6286]
[1757102636951,0.8308,4335.0,4334.9,3.6519]
[1757102637253,0.4181,4335.0,4334.9,4.0189]
[1757102637554,0.3014,4335.4,4335.3,0.4208]
[1757102637752,0.5111,4335.4,4335.3,0.6578]
[1757102639454,0.7141,4335.4,4335.3,0.6578]
[1757102641853,0.7141,4334.6,4334.0,0.237]
[1757102642055,0.5111,4334.1,4334.0,0.6578]
[1757102642254,0.7141,4334.1,4334.0,0.6578]
[1757102645561,0.7141,4334.1,4333.8,3.2078]
[1757102645766,0.8308,4334.0,4333.9,0.4441]
[1757102645955,0.3014,4333.9,4333.8,3.2078]
[1757102646161,0.7141,4333.9,4333.8,3.2078]
[1757102647763,0.7141,4333.9,4332.4,0.41544]
[1757102647764,0.6278,4333.5,4333.4,0.4208]
[1757102648066,0.8308,4333.5,4333.4,0.6588]
[1757102648669,0.4181,4333.5,4333.4,0.8121]
[1757102649371,0.3014,4333.9,4333.5,0.1533]
[1757102649571,0.5111,4333.9,4333.8,0.4208]
[1757102649871,0.7141,4333.9,4333.8,0.4208]
[1757102650069,0.7141,4333.9,4333.8,0.6578]
[1757102651367,0.7141,4333.9,4333.1,3.2078]
[1757102651679,0.8308,4333.5,4333.4,0.2071]
[1757102651977,0.7141,4332.7,4332.6,3.2078]
[1757102652269,0.1167,4333.0,4332.1,3.7819]
[1757102652270,0.3014,4332.4,4332.1,3.7819]
[1757102652474,0.6278,4332.5,4332.4,0.4208]
[1757102652871,0.1167,4333.0,4332.4,0.4208]
[1757102653068,0.5111,4332.9,4332.8,0.4208]
[1757102653272,0.5111,4332.9,4332.8,0.6588]
[1757102655172,0.3014,4332.9,4332.8,0.8121]
[1757102655372,0.5294,4333.5,4333.4,0.2071]
[1757102655573,0.4181,4333.5,4333.4,0.4208]
[1757102655971,0.4181,4333.5,4333.4,0.5741]
[1757102656178,0.3014,4333.5,4333.4,0.5741]
[1757102656776,0.3014,4333.9,4333.4,0.4208]
[1757102657080,0.3014,4333.9,4333.8,0.4208]
[1757102657281,0.5111,4333.9,4333.8,0.6588]
[1757102659278,0.3014,4333.9,4333.8,0.8124]
[1757102659480,0.316,4334.4,4333.8,0.8124]
[1757102659681,0.316,4334.4,4333.9,0.23073]
[1757102659993,0.1167,4335.0,4334.4,0.4106]
[1757102659994,0.316,4334.9,4334.4,0.4106]
[1757102660286,0.7028,4334.9,4334.8,0.2035]
[1757102661784,0.1167,4335.0,4334.6,3.2078]
[1757102661785,0.3868,4334.7,4334.6,3.2078]
[1757102662087,0.7028,4334.7,4334.6,3.2078]
[1757102664887,0.7028,4334.4,4334.3,0.237]
[1757102665082,0.7028,4334.4,4334.3,0.4405]
[1757102665290,0.7028,4334.4,4334.3,0.237]
[1757102671795,0.8204,4334.0,4333.9,4.64641046]
[1757102671993,0.8204,4334.0,4333.9,4.88341046]
[1757102672190,0.5044,4334.0,4333.7,1.23511046]
[1757102672493,0.7028,4333.6,4333.5,0.237]
[1757102672682,0.316,4333.9,4333.5,0.6476]
[1757102672884,0.3109,4334.0,4333.9,0.4106]
[1757102673083,0.5044,4334.0,4333.9,0.6476]
[1757102673386,0.8204,4334.0,4333.9,0.6476]
[1757102673784,0.6269,4334.0,4333.9,0.6476]
[1757102674984,0.8204,4334.0,4333.9,0.6476]
[1757102675988,0.4336,4334.0,4333.9,0.8012]
[1757102678087,0.8204,4334.0,4333.9,0.6476]
[1757102678794,0.6269,4334.0,4333.9,0.6476]
[1757102679091,0.8204,4334.0,4333.9,0.6476]
[1757102680495,0.8204,4334.0,4333.9,0.237]
[1757102681194,0.8204,4334.0,4333.9,0.4405]
[1757102681394,0.316,4333.9,4333.8,3.2078]
[1757102681597,0.7028,4333.9,4333.8,3.4448]
[1757102682095,0.7028,4333.9,4333.8,3.6483]
[1757102683597,0.7028,4333.9,4333.8,3.4448]
[1757102685087,0.7028,4333.9,4333.8,3.2078]
[1757102685398,0.7028,4333.9,4333.8,3.4448]
[1757102685691,0.7028,4333.9,4333.3,5.371]
[1757102685692,0.3868,4333.8,4333.3,8.5788]
[1757102685886,0.3109,4333.5,4333.4,0.8012]
[1757102686287,0.6269,4333.5,4333.4,0.8012]
[1757102687392,0.6269,4333.5,4333.4,0.6476]
[1757102689800,0.8414,4333.5,4333.4,0.6476]
[1757102690099,0.8414,4333.5,4333.4,0.4405]
[1757102690896,0.8414,4333.5,4333.4,0.2035]
[1757102691293,0.8414,4333.5,4333.4,0.4405]
[1757102692293,0.8414,4333.5,4333.3,3.2078]
[1757102692500,0.3123,4333.4,4333.3,3.2078]
[1757102692690,0.7387,4333.4,4333.3,3.6535]
[1757102693098,0.7387,4333.4,4333.3,3.617]
[1757102693804,0.7387,4333.4,4333.3,3.854]
[1757102696499,0.5242,4333.4,4333.3,3.854]
[1757102699095,0.7387,4333.4,4333.3,3.854]
[1757102701198,0.7387,4333.4,4333.3,3.6535]
[1757102701900,0.7387,4333.4,4333.3,0.237]
[1757102702101,0.7387,4332.9,4332.8,3.617]
[1757102702297,0.5242,4333.4,4333.3,0.4092]
[1757102702500,0.5242,4333.4,4333.3,0.6462]
[1757102702700,0.5242,4333.4,4333.3,0.7998]
[1757102704006,0.5242,4333.4,4333.3,0.6462]
[1757102705101,0.7387,4333.4,4333.3,0.6462]
[1757102708103,0.7387,4333.4,4333.3,0.4457]
[1757102711305,0.7387,4333.4,4333.3,0.6462]
[1757102712106,0.7387,4333.4,4333.3,0.237]
[1757102715112,0.7387,4333.4,4332.8,3.2078]
[1757102715421,0.8643,4333.0,4332.9,0.87697999]
[1757102715916,0.8643,4333.0,4332.9,0.6462]
[1757102716517,0.8643,4333.0,4332.9,0.237]
[1757102716905,0.552,4333.0,4332.8,3.2078]
[1757102717211,0.7387,4332.9,4332.8,3.2078]
[1757102717413,0.7387,4332.9,4332.8,3.4448]
[1757102717618,0.7387,4332.9,4332.8,3.2078]
[1757102718115,0.7387,4332.9,4331.9,1.63892944]
[1757102718116,4.65719,4332.9,4331.8,0.3189]
[1757102718318,0.7317,4331.9,4331.8,0.7281]
[1757102718618,0.7317,4331.9,4331.8,0.4092]
[1757102719008,0.7317,4331.9,4331.8,0.2087]
[1757102719419,0.7317,4331.9,4331.8,0.4133]
[1757102719613,0.7317,4331.9,4331.8,0.7314]
[1757102720012,0.7317,4331.9,4331.8,0.4133]
[1757102720414,0.7317,4331.9,4331.8,0.2087]
[1757102721423,0.7317,4331.9,4331.7,0.237]
[1757102722011,0.4264,4331.9,4330.8,3.5259]
[1757102722217,0.8319,4331.0,4330.9,0.7165]
[1757102723218,0.8319,4331.0,4330.4,0.3181]
[1757102723219,0.5266,4331.0,4330.4,0.3181]
[1757102723423,0.7126,4330.9,4330.8,0.1938]
[1757102723726,0.7126,4330.9,4330.8,0.7165]
[1757102724125,0.7126,4330.9,4330.8,0.3984]
[1757102724328,0.7126,4330.9,4330.8,0.1938]
[1757102725619,0.4073,4330.9,4330.5,0.5551]
[1757102725827,0.7126,4330.8,4330.7,0.1938]
[1757102728325,0.7126,4330.8,4330.5,0.237]
[1757102729025,0.7126,4330.4,4329.8,32.1691]
[1757102729234,0.7126,4329.8,4329.7,0.1938]
[1757102729424,0.7126,4329.8,4329.7,0.7165]
[1757102729620,0.4993,4329.8,4329.7,0.7165]
[1757102730232,0.7126,4329.8,4329.7,0.7165]
[1757102730631,0.7126,4329.8,4329.7,0.6354]
[1757102734036,0.7126,4329.8,4329.7,0.1938]
[1757102734933,0.7126,4329.8,4329.7,0.7165]
[1757102735437,0.7126,4329.8,4329.7,0.3984]
[1757102736131,0.7126,4329.8,4329.4,0.3181]
[1757102736341,0.8319,4329.5,4329.4,0.5119]
[1757102736535,0.8319,4329.5,4329.4,0.1938]
[1757102736935,0.194,4328.7,4328.6,0.7165]
[1757102737239,0.4993,4328.7,4328.6,0.9535]
[1757102738937,0.3053,4328.6,4327.8,0.3181]
[1757102739131,0.5266,4328.0,4327.9,0.1938]
[1757102739331,0.5266,4328.0,4327.9,0.7165]
[1757102739332,0.8319,4328.0,4327.9,0.7165]
[1757102740139,3.2078,4328.4,4327.9,0.3984]
[1757102740441,3.2078,4328.4,4327.4,0.18781047]
[1757102740442,0.7126,4329.2,4328.7,0.3181]
[1757102740630,0.1193,4328.5,4328.3,0.3181]
[1757102740828,0.1193,4328.5,4327.6,3.2078]
[1757102740829,0.8319,4328.5,4327.9,0.3181]
[1757102741042,0.8319,4328.5,4328.0,0.238]
[1757102741441,0.8319,4328.5,4328.1,0.3181]
[1757102741636,0.8319,4328.5,4328.0,0.238]
[1757102741637,3.2078,4328.4,4328.0,0.5561]
[1757102741836,3.2078,4328.4,4328.0,0.1938]
[1757102741837,0.7126,4328.1,4328.0,0.1938]
[1757102742434,0.7126,4328.1,4328.0,0.7165]
[1757102742638,0.4993,4328.1,4328.0,0.7165]
[1757102743343,0.7126,4328.1,4328.0,0.7165]
[1757102743745,3.5131,4328.4,4328.1,0.3181]
[1757102743953,0.3053,4328.4,4328.1,0.3181]
[1757102744145,0.4993,4328.4,4328.3,0.7165]
[1757102745641,0.7126,4328.4,4328.3,0.7165]
[1757102746247,0.7126,4328.4,4328.3,0.1938]
[1757102746453,0.7126,4328.4,4327.9,0.5561]
[1757102746651,0.2133,4328.3,4328.2,0.1938]
[1757102746851,0.7126,4328.3,4328.2,0.7165]
[1757102748051,0.7126,4328.3,4328.2,0.3984]
[1757102748649,0.7126,4328.3,4328.2,0.6944]
[1757102749245,0.7126,4328.3,4327.8,0.296]
[1757102749447,0.7126,4328.3,4328.0,0.237]
[1757102750851,0.7126,4328.3,4328.2,0.7039]
[1757102751952,0.3055,4328.4,4328.3,0.7039]
[1757102752150,0.508,4328.4,4328.3,0.70475221]
[1757102752348,0.4064,4328.9,4328.8,0.4079]
[1757102752547,0.7119,4328.9,4328.8,0.4079]
[1757102752950,0.7119,4328.9,4328.8,0.2131]
[1757102753349,0.7119,4328.9,4328.8,0.4079]
[1757102753548,0.7119,4328.9,4328.8,0.7039]
[1757102754459,0.7119,4328.4,4328.3,0.21395221]
[1757102754648,0.7119,4328.4,4328.3,0.70475221]
[1757102755053,0.508,4328.4,4328.3,0.70475221]
[1757102755252,0.3055,4328.9,4328.4,0.296]
[1757102755449,0.7119,4328.9,4328.8,0.7039]
[1757102756448,0.508,4328.9,4328.8,0.7039]
[1757102756651,0.2025,4328.9,4328.8,0.7039]
[1757102756857,0.508,4328.9,4328.8,0.7039]
[1757102759253,0.7119,4328.9,4328.8,0.7039]
[1757102759659,3.2078,4329.1,4328.9,0.296]
[1757102759953,0.3055,4329.4,4329.3,0.4079]
[1757102760157,0.508,4329.6,4329.5,0.7039]
[1757102760355,1.03045013,4329.6,4329.5,0.7039]
[1757102760548,0.1281,4329.5,4329.3,0.237]
[1757102760747,0.7119,4329.4,4329.3,0.237]
[1757102760949,0.7119,4329.4,4329.3,0.4501]
[1757102761357,0.1281,4329.0,4328.5,0.296]
[1757102761557,0.7119,4328.7,4328.6,0.4079]
[1757102761760,0.7119,4328.7,4327.9,3.2078]
[1757102761761,0.7119,4327.4,4327.3,0.7039]
[1757102762054,0.3055,4327.9,4327.4,0.296]
[1757102762256,0.7119,4328.4,4328.3,0.2131]
[1757102762652,0.7119,4328.4,4328.3,0.7039]
[1757102763955,3.3359,4329.0,4328.3,0.7039]
[1757102763956,0.3055,4328.9,4328.3,0.7039]
[1757102764747,3.3359,4329.0,4328.3,0.7039]
[1757102764952,0.3055,4328.9,4328.3,0.7039]
[1757102765150,0.3055,4328.9,4328.4,0.296]
[1757102765346,0.508,4328.9,4328.8,0.7039]
[1757102766153,0.7119,4328.9,4328.8,0.7039]
[1757102767154,0.7119,4328.9,4328.8,0.4079]
[1757102767348,0.7119,4328.9,4328.8,0.2131]
[1757102768254,0.7119,4328.9,4328.5,0.238]
[1757102769953,0.7119,4328.9,4328.8,0.2131]
[1757102770156,0.7119,4328.9,4328.8,0.4079]
[1757102775655,0.7119,4328.9,4328.8,0.2131]
[1757102777062,0.7119,4328.9,4328.8,0.4079]
[1757102777264,0.7119,4328.9,4328.8,0.7039]
[1757102777663,0.7119,4328.9,4328.8,0.2131]
[1757102777864,0.3055,4328.8,4328.5,0.534]
[1757102778160,0.7119,4328.6,4328.5,0.7471]
[1757102778363,0.7119,4328.6,4328.5,0.4511]
[1757102778565,0.7119,4328.6,4328.5,0.9563]
[1757102779164,0.7119,4328.6,4328.5,0.238]
[1757102779664,0.7119,4328.6,4328.5,0.4477]
[1757102779863,3.83,4328.3,4326.0,0.4157]
[1757102780069,3.83,4327.2,4326.0,0.4157]
[1757102780363,3.2078,4326.4,4325.5,0.6253]
[1757102780665,0.99303999,4326.3,4325.6,0.5047]
[1757102780854,0.1979116,4326.2,4325.7,0.295]
[1757102781057,0.244,4327.3,4326.3,0.4199]
[1757102781259,3.2078,4326.9,4326.5,0.3367]
[1757102781472,0.19793933,4326.8,4326.5,0.422]
[1757102781668,0.19793933,4326.7,4326.6,0.295]
[1757102782168,4.42906933,4326.7,4325.9,3.2078]
[1757102782356,4.42906933,4326.7,4325.6,0.295]
[1757102782357,3.2078,4326.1,4326.0,0.6317]
[1757102782557,3.40573933,4326.1,4326.0,0.8419]
[1757102782757,0.19793933,4326.1,4326.0,0.8419]
[1757102783365,3.2078,4326.1,4326.0,0.8419]
[1757102783556,3.40573933,4326.1,4326.0,0.8419]
[1757102784058,3.40773933,4326.1,4326.0,0.8419]
[1757102784463,0.19793933,4326.1,4326.0,2.48082944]
[1757102784669,0.19793933,4326.1,4326.0,2.18582944]
[1757102784967,3.2078,4326.6,4326.1,0.7149]
[1757102784968,0.002,4326.2,4326.1,0.7149]
[1757102785164,0.25959472,4326.2,4326.1,0.7149]
[1757102785370,0.25959472,4326.2,4326.1,2.35382944]
[1757102785572,0.26159472,4326.2,4326.1,2.35382944]
[1757102786771,0.26159472,4326.2,4326.1,0.295]
[1757102786963,0.26279472,4326.2,4326.0,0.127]
[1757102787159,3.47059472,4326.1,4325.8,0.295]
[1757102787365,0.004,4325.9,4325.8,0.295]
[1757102787571,0.26159472,4325.9,4325.8,0.295]
[1757102787770,0.26159472,4325.9,4325.8,0.5047]
[1757102788974,0.26159472,4325.9,4325.8,0.295]
[1757102790862,0.26279472,4325.9,4325.8,0.295]
[1757102791065,0.004,4325.7,4325.6,0.5047]
[1757102791266,0.004,4325.7,4325.6,2.14362944]
[1757102791572,0.26159472,4325.7,4325.6,2.14362944]
[1757102792263,0.26159472,4325.7,4325.6,2.35382944]
[1757102793074,0.26159472,4325.7,4325.6,0.295]
[1757102793273,0.26279472,4325.7,4325.6,0.295]
[1757102794465,0.2962,4325.6,4325.0,0.1206]
[1757102794774,0.2094,4325.1,4325.0,0.5405]
[1757102795273,3.2078,4325.2,4325.0,2.17942944]
[1757102796171,3.2078,4325.7,4325.6,0.4199]
[1757102796375,3.2078,4325.7,4325.6,0.7149]
[1757102796669,3.2078,4325.7,4325.6,2.35382944]
[1757102799277,3.2078,4325.7,4325.6,0.7149]
[1757102799879,3.4172,4325.7,4325.6,2.35382944]
[1757102800072,3.6647004,4325.7,4325.6,2.35382944]
[1757102802780,3.4553004,4325.7,4325.6,2.35382944]
[1757102805479,3.4553004,4325.7,4325.6,2.59682944]
[1757102805676,3.8731004,4325.7,4325.6,2.59682944]
[1757102807575,3.8731004,4325.7,4325.6,0.7477]
[1757102807884,4.1693004,4325.7,4325.5,0.243]
[1757102808073,0.9741004,4325.6,4325.5,0.4527]
[1757102808272,0.9741004,4325.6,4325.5,0.6629]
[1757102809275,1.56900366,4325.6,4325.5,0.6629]
[1757102809884,1.56900366,4325.6,4325.5,0.978]
[1757102811499,1.56900366,4325.6,4325.5,0.243]
[1757102811987,1.56900366,4325.6,4325.5,0.4472]
[1757102812383,0.84240366,4325.6,4325.5,2.72972944]
[1757102812683,0.59490326,4325.6,4325.5,2.72972944]
[1757102812886,0.79700326,4325.6,4325.5,2.72972944]
[1757102813178,0.59490326,4325.6,4325.5,2.72972944]
[1757102813380,2.16377382,4326.2,4326.1,0.4181]
[1757102813579,3.524,4326.9,4326.8,0.7332]
[1757102813783,3.7261,4326.9,4326.8,0.9762]
[1757102813979,3.9268,4326.9,4326.8,0.9762]
[1757102814390,0.3162,4327.3,4326.9,0.3151]
[1757102814683,0.5183,4327.0,4326.9,0.7332]
[1757102815487,3.2078,4327.4,4326.9,0.7332]
[1757102815688,0.5183,4327.3,4327.2,0.7332]
[1757102815987,0.5183,4327.3,4327.2,0.9752]
[1757102816288,0.719,4327.3,4327.2,0.9752]
[1757102818184,0.719,4327.3,4327.0,3.2078]
[1757102818185,0.719,4327.2,4327.1,0.242]
[1757102818379,0.845,4327.0,4326.9,0.242]
[1757102818774,0.845,4327.0,4326.9,0.4462]
[1757102819080,3.3065,4327.5,4327.3,0.2042]
[1757102819081,0.719,4327.4,4327.3,0.2042]
[1757102819282,0.719,4327.4,4327.0,0.3151]
[1757102819480,0.719,4327.4,4326.9,0.242]
[1757102819880,0.719,4327.4,4327.0,0.3151]
[1757102820381,0.719,4327.4,4327.3,0.2042]
[1757102821186,0.845,4327.0,4326.9,0.7613]
[1757102821386,0.845,4327.0,4326.9,0.9752]
[1757102824084,0.719,4327.0,4326.9,0.9752]
[1757102824490,0.5183,4327.0,4326.9,0.9752]
[1757102829896,0.719,4327.4,4327.3,0.4181]
[1757102830096,0.719,4327.4,4327.3,0.97536885]
[1757102830292,0.3162,4327.9,4327.4,0.3151]
[1757102830497,0.3162,4328.1,4327.8,0.4181]
[1757102830693,0.3162,4328.1,4328.0,0.7332]
[1757102830996,0.5183,4328.1,4328.0,1.04937505]
[1757102831189,0.719,4328.1,4328.0,1.04937505]
[1757102833085,0.719,4328.1,4327.8,3.2078]
[1757102833290,3.3338,4328.5,4327.6,0.241]
[1757102833291,0.4028,4327.7,4327.6,0.241]
[1757102833586,0.719,4327.7,4327.6,0.241]
[1757102834294,0.719,4327.4,4326.7,0.3151]
[1757102834493,0.3162,4327.3,4326.2,0.3151]
[1757102834796,0.719,4326.4,4326.3,0.9742]
[1757102835095,0.719,4326.4,4326.1,3.2078]
[1757102835096,0.4028,4325.9,4325.8,0.7332]
[1757102835397,0.719,4325.9,4325.8,0.9742]
[1757102838200,0.719,4325.9,4325.8,0.6591]
[1757102838898,0.719,4325.9,4325.8,0.4452]
[1757102839203,0.719,4325.9,4325.8,0.9463]
[1757102839700,0.719,4325.9,4325.8,0.6404]
[1757102840196,0.719,4325.9,4325.0,35.2388]
[1757102840399,0.196,4325.2,4325.1,0.9452]
[1757102840603,0.4868,4325.2,4325.1,0.9452]
[1757102840993,0.6835,4325.2,4325.1,0.7042]
[1757102841200,3.8913,4325.2,4325.1,0.7042]
[1757102841398,3.8913,4325.2,4325.1,0.9452]
[1757102842805,0.6835,4325.2,4325.1,0.9452]
[1757102843100,0.4868,4325.2,4325.1,0.9452]
[1757102845301,0.4868,4325.2,4325.1,1.23468616]
[1757102845798,0.6835,4325.2,4325.1,0.99368616]
[1757102845999,0.6835,4325.2,4325.1,1.23468616]
[1757102847199,0.6835,4325.2,4325.1,0.28948616]
[1757102847399,3.8913,4325.2,4324.9,0.24]
[1757102847603,0.8005,4325.0,4324.9,0.2031]
[1757102848302,0.8005,4325.0,4324.7,0.24]
[1757102849108,0.8005,4325.0,4324.9,0.2031]
[1757102849307,0.4078,4325.0,4324.9,0.7042]
[1757102849509,0.2908,4325.0,4324.9,0.7042]
[1757102849704,0.2908,4324.9,4324.3,3.2078]
[1757102850006,0.4868,4324.5,4324.4,0.9442]
[1757102850198,0.2908,4324.9,4324.4,0.9442]
[1757102850400,0.4868,4324.5,4324.4,0.9442]
[1757102851803,0.117,4325.0,4324.5,0.3059]
[1757102852004,0.8005,4325.0,4324.9,0.3983]
[1757102852211,0.4868,4325.0,4324.9,0.6383]
[1757102852411,0.6835,4325.0,4324.9,0.6383]
[1757102852908,0.6835,4325.0,4324.9,0.9442]
[1757102853304,0.8005,4325.0,4324.9,0.9442]
[1757102853502,0.8005,4325.0,4324.9,0.4431]
[1757102854510,0.117,4324.5,4324.4,0.2031]
[1757102854710,0.8005,4324.5,4324.4,0.4431]
[1757102854905,0.8005,4324.5,4324.4,0.9442]
[1757102855114,0.2908,4324.4,4324.3,0.5011]
[1757102855303,0.6835,4324.4,4324.3,0.9442]
[1757102856625,0.6835,4324.4,4324.3,0.6383]
[1757102857018,0.6835,4324.4,4324.3,0.4431]
[1757102857929,0.2908,4324.3,4323.7,3.2078]
[1757102858229,0.4868,4323.9,4323.8,0.9442]
[1757102858618,0.6835,4323.9,4323.8,0.9442]
[1757102859027,0.6835,4323.9,4323.8,0.6383]
[1757102859228,0.6835,4323.9,4323.8,0.9442]
[1757102859428,0.6835,4323.9,4323.8,1.22920954]
[1757102860224,0.6835,4323.9,4323.8,0.9442]
[1757102860726,0.4868,4323.8,4323.7,3.912]
[1757102860929,0.4868,4323.8,4323.7,4.152]
[1757102861626,0.6835,4323.8,4323.7,3.2078]
[1757102861832,1.6653,4323.8,4323.7,3.6509]
[1757102862030,1.6653,4323.8,4323.7,4.152]
[1757102862237,0.9818,4323.8,4323.7,4.152]
[1757102863727,0.9818,4323.8,4323.7,8.152]
[1757102866035,0.4868,4324.7,4324.6,0.3983]
[1757102866230,0.6835,4324.7,4324.6,0.6383]
[1757102868039,0.2908,4325.1,4325.0,0.3983]
[1757102868340,0.8072,4325.5,4325.4,0.2127]
[1757102868537,0.8072,4325.5,4325.4,0.6541]
[1757102868735,0.8072,4325.5,4325.4,0.4527]
[1757102869831,0.6089,4325.5,4325.4,0.6541]
[1757102870940,0.8072,4325.5,4325.4,0.6541]